fUSD/lending_fUSD_20240116
["ID","MTS","AMOUNT","RATE_DAILY","PERIOD"]
[311800394,1705411840085,-386.26961565,0.00022998,2]
[311800397,1705411840095,-156.68213688,0.00022998,2]
[311800399,1705411840104,-200.0,0.00022998,2]
[311800401,1705411840113,-195.11519234,0.00022998,2]
[311800404,1705411840122,-350.0537222,0.00022998,2]
[311800406,1705411840131,-157.00357283,0.00022998,2]
[311800409,1705411840141,-599.79806811,0.00022998,2]
[311800412,1705411840151,-250.11610427,0.00022998,2]
[311800415,1705411840161,-208.152724,0.00022998,2]
[311800418,1705411840171,-1442.43348609,0.00022998,2]
[311800421,1705411840181,-150.0,0.00022998,2]
[311800424,1705411840191,-150.01,0.00022999,2]
[311800427,1705411840203,-1873.79674419,0.00022999,2]
[311800430,1705411840213,-300.0,0.00022999,2]
[311800433,1705411840223,-300.0,0.00022999,2]
[311800435,1705411840232,-300.0,0.00022999,2]
[311800439,1705411840242,-300.0,0.00022999,2]
[311800442,1705411840252,-300.0,0.00022999,2]
[311800445,1705411840261,-300.0,0.00022999,2]
[311800448,1705411840271,-300.0,0.00022999,2]
[311800451,1705411840282,-300.0,0.00022999,2]
[311800453,1705411840291,-300.0,0.00022999,2]
[311800455,1705411840300,-300.0,0.00022999,2]
[311800457,1705411840310,-300.0,0.00022999,2]
[311800459,1705411840323,-300.0,0.00022999,2]
[311800461,1705411840332,-300.0,0.00022999,2]
[311800463,1705411840342,-300.0,0.00022999,2]
[311800465,1705411840351,-300.0,0.00022999,2]
[311800467,1705411840360,-300.0,0.00022999,2]
[311800469,1705411840369,-151.24461291,0.00023,2]
[311800471,1705411840378,-545449.57146884,0.00023,2]
[311800473,1705411840388,-391125.90122713,0.00023,2]
[311800475,1705411840397,-341649.78231411,0.00023,2]
[311800579,1705411841735,763.59853721,0.00022,2]
[311800580,1705411842031,-201.87231973,0.00022055,2]
[311800581,1705411842042,-1000.0,0.00022885,2]
[311800582,1705411842052,-1000.0,0.00022885,2]
[311800583,1705411842064,-1000.0,0.00022885,2]
[311800584,1705411842073,-418.2686,0.00022885,2]
[311800585,1705411842082,-9309.25908027,0.00022994,2]
[311800594,1705411843734,-840.0,0.00022727,2]
[311800595,1705411843743,-203.763,0.00022804,2]
[311800596,1705411843752,-1234.0,0.00022909,2]
[311800597,1705411843762,-4477.53750113,0.00022994,2]
[311800598,1705411843796,-342.21090013,0.00022804,2]
[311800599,1705411843808,-909.78909987,0.00022804,2]
[311800600,1705411843817,-4055.55046051,0.00022994,2]
[311800622,1705411845826,-201.87231973,0.00022176,2]
[311800623,1705411845836,-599.92435883,0.00022633,2]
[311800624,1705411845847,-108.07564117,0.00022633,2]
[311800625,1705411845858,-1231.78714533,0.00022994,2]
[311800626,1705411846148,-17483.90392281,0.00022994,2]
[311800642,1705411858020,259.67457195,0.00021782,2]
[311800643,1705412112026,259.76787016,0.00021782,2]
[311800644,1705412115644,210.1,0.00019424,2]
[311800645,1705412115865,210.1,0.00021688,2]
[311800646,1705412132071,259.76787016,0.00021782,2]
[311800647,1705412148030,259.76787016,0.00021782,2]
[311800648,1705412170045,259.39467732,0.00021782,2]
[311800649,1705412203425,165.6433,0.00021954,2]
[311800650,1705412257732,250.0,0.00021918,2]
[311800651,1705412311174,226.8,0.00021154,2]
[311800652,1705412311422,226.8,0.00021265,2]
[311800653,1705412311826,226.8,0.00021377,2]
[311800654,1705412311996,226.8,0.00021488,2]
[311800655,1705412312395,226.8,0.00021599,2]
[311800656,1705412312804,226.8,0.00021711,2]
[311800657,1705412313016,226.8,0.00021822,2]
[311800658,1705412313548,226.8,0.00021933,2]
[311800659,1705412321446,328.0,0.00021116,2]
[311800660,1705412332074,11839.91,0.00021116,2]
[311800661,1705412338430,481.09,0.00021116,2]
[311800662,1705412379635,173.3,0.00021247,2]
[311800663,1705412523255,150.0,0.00021309,2]
[311800664,1705412523283,11.88,0.00021309,2]
[311800665,1705412630649,185.63,0.00019167,2]
[311800666,1705412630672,3.46,0.00019167,2]
[311800667,1705412630872,146.54,0.0002143,2]
[311800668,1705412630895,42.55,0.0002143,2]
[311800669,1705412644742,109.55044573,0.00021967,2]
[311800670,1705412644764,96.44955427,0.00021967,2]
[311800671,1705412689433,79.10044573,0.00022,2]
[311800672,1705412689453,150.0,0.00022,2]
[311800673,1705412689473,168.85243675,0.00022,2]
[311800674,1705412689494,102.04711752,0.00022,2]
[311800675,1705412690156,500.0,0.00022,2]
[311800676,1705412690918,480.44,0.00022,2]
[311800677,1705412730601,-150.0,0.00022,2]
[311800678,1705412730934,-259.60413997,0.00022,2]
[311800679,1705412766276,300.0,0.00022,2]
[311800680,1705412775442,-175.55,0.00022,2]
[311800681,1705412778596,261.9455,0.00021953,2]
[311800682,1705412783366,737.6,0.00021073,2]
[311800683,1705412791921,472.18,0.00021073,2]
[311800684,1705412903774,-600.0,0.00022,2]
[311800685,1705412972384,-150.0,0.00022,2]
[311800686,1705412973234,-150.0,0.00022,2]
[311800687,1705412985301,-168.2099143,0.00022,2]
[311800688,1705412986372,-150.0,0.00022,2]
[311800689,1705412986841,-150.0,0.00022,2]
[311800690,1705412987297,-150.0,0.00022,2]
[311800691,1705412987828,-150.0,0.00022,2]
[311800692,1705412990904,-150.0,0.00022,2]
[311800693,1705412991733,-150.0,0.00022,2]
[311800694,1705412994351,-150.0,0.00022,2]
[311800695,1705412994765,-150.0,0.00022,2]
[311800696,1705412998166,-150.0,0.00022,2]
[311800697,1705412998573,-150.0,0.00022,2]
[311800698,1705412999497,-150.0,0.00022,2]
[311800699,1705413000988,-150.0,0.00022,2]
[311800700,1705413001516,-150.0,0.00022,2]
[311800702,1705413022344,155.44,0.00021277,2]
[311800710,1705413032041,-150.0,0.00022027,2]
[311800711,1705413032051,-468.63227857,0.00022041,2]
[311800712,1705413032061,-468.63227857,0.00022041,2]
[311800713,1705413032070,-62.73544286,0.00022042,2]
[311800714,1705413032099,-864.68441708,0.00022042,2]
[311800715,1705413032111,-255.4812832,0.00022042,2]
[311800724,1705413032352,-640.06759,0.00022042,2]
[311800728,1705413032386,-679.88776516,0.00022042,2]
[311800730,1705413032396,-503.53567933,0.00022043,2]
[311800764,1705413038329,-343.36644218,0.00022,2]
[311800766,1705413038344,-54.22123568,0.00022,2]
[311800768,1705413038354,-260.06285788,0.00022043,2]
[311800769,1705413038365,-226.8,0.00022045,2]
[311800770,1705413038376,-150.0,0.0002205,2]
[311800771,1705413038387,-155.16590144,0.0002205,2]
[311800772,1705413038440,-563.67409856,0.0002205,2]
[311800773,1705413038451,-709.51826518,0.00022051,2]
[311800774,1705413038464,-16.19173482,0.00022051,2]
[311800775,1705413038475,-712.38,0.00022051,2]
[311800776,1705413038485,-590.47678518,0.00022051,2]
[311800777,1705413038499,-137.97321482,0.00022051,2]
[311800778,1705413038509,-713.01,0.00022051,2]
[311800779,1705413038521,-269.64508518,0.00022051,2]
[311800780,1705413038539,-462.54491482,0.00022051,2]
[311800781,1705413038549,-67.35847478,0.00022051,7]
[311800782,1705413038692,-111.90931253,0.00022051,7]
[311800783,1705413038704,-389.2220593,0.00022051,2]
[311800805,1705413038978,-210.05773278,0.00022051,2]
[311800807,1705413038988,-327.01068005,0.00022051,2]
[311800809,1705413038997,-300.0,0.00022051,2]
[311800811,1705413039007,-1848.106171,0.00022051,2]
[311800813,1705413039016,-715.89,0.00022051,2]
[311800859,1705413039026,-736.24,0.00022051,2]
[311800863,1705413039500,-472.18,0.00022052,2]
[311800866,1705413039510,-723.37,0.00022052,2]
[311800868,1705413039519,-275.49795962,0.00022052,2]
[311800870,1705413039532,-381.03953439,0.00022052,2]
[311800930,1705413040694,-73.05250599,0.00022052,2]
[311800931,1705413040705,-717.18,0.00022052,2]
[311800932,1705413040716,-296.78094244,0.00022052,2]
[311800933,1705413040728,-513.12836649,0.00022052,2]
[311800934,1705413041058,-3653.16460203,0.00022052,2]
[311800935,1705413041069,-229.48563246,0.00022052,2]
[311800936,1705413041079,-713.33,0.00022053,2]
[311800937,1705413041089,-727.45,0.00022053,2]
[311800938,1705413041098,-732.38,0.00022053,2]
[311800939,1705413041108,-129316.83117252,0.00022053,2]
[311800940,1705413041118,-52686.1163,0.00022054,2]
[311800941,1705413041129,-714.89,0.00022054,2]
[311800942,1705413041138,-723.77,0.00022054,2]
[311800943,1705413041148,-160.51,0.00022092,2]
[311800944,1705413041157,-527.03240952,0.00022097,7]
[311800945,1705413041166,-521.17755723,0.00022097,2]
[311800946,1705413041175,-173.51625013,0.00022097,2]
[311800947,1705413041185,-4028.65770379,0.00022098,2]
[311800948,1705413041194,-5000.0,0.000221,2]
[311800949,1705413041203,-220.94106301,0.00022143,2]
[311800950,1705413041213,-226.8,0.00022156,2]
[311800951,1705413041222,-156.48080609,0.000222,2]
[311800952,1705413041232,-505534.28686793,0.000222,2]
[311800953,1705413041241,-734.69,0.00022243,2]
[311800954,1705413041250,-220.94106301,0.00022251,2]
[311800955,1705413041260,-226.8,0.00022267,2]
[311800956,1705413041269,-710.68,0.00022287,2]
[311800957,1705413041279,-220.94106301,0.00022359,2]
[311800958,1705413041288,-226.8,0.00022379,2]
[311800959,1705413041299,-215.86,0.00022458,2]
[311800960,1705413041309,-220.94106301,0.00022467,2]
[311800961,1705413041319,-722.43,0.00022478,2]
[311800962,1705413041328,-226.8,0.0002249,2]
[311800963,1705413041342,-12294.16339703,0.000225,2]
[311800964,1705413041352,-194.12,0.000225,2]
[311800965,1705413041361,-151.47,0.000225,2]
[311800966,1705413041371,-150.0,0.000225,2]
[311800967,1705413041383,-150.0,0.000225,2]
[311800968,1705413041392,-274.84,0.000225,2]
[311800969,1705413041404,-150.0,0.000225,2]
[311800970,1705413041414,-344.95,0.000225,2]
[311800971,1705413041424,-150.0,0.000225,2]
[311800972,1705413041435,-349.96,0.000225,2]
[311800973,1705413041445,-150.0,0.000225,2]
[311800974,1705413041455,-2302.079661,0.000225,2]
[311800975,1705413041465,-220.94106301,0.00022576,2]
[311800976,1705413041475,-476.63,0.000226,2]
[311800977,1705413041485,-836.48,0.000226,2]
[311800978,1705413041495,-1879.0,0.000226,2]
[311800979,1705413041505,-226.8,0.00022601,2]
[311800980,1705413041515,-161.88,0.00022645,2]
[311800981,1705413041525,-220.94106301,0.00022684,2]
[311800982,1705413041535,-909.35813974,0.00022684,2]
[311800983,1705413041545,-1000.0,0.000227,2]
[311800984,1705413041555,-2837.0,0.000227,2]
[311800985,1705413041564,-25640.0,0.000227,2]
[311800986,1705413041574,-226.8,0.00022713,2]
[311800987,1705413041583,-1310.53148533,0.00022717,2]
[311800988,1705413041592,-150.0,0.00022726,2]
[311800989,1705413041602,-150.0,0.00022727,2]
[311800990,1705413041612,-150.0,0.00022729,2]
[311800991,1705413041622,-150.0,0.00022731,2]
[311800992,1705413041636,-150.0,0.00022742,2]
[311800993,1705413041646,-501.22014815,0.00022743,2]
[311800994,1705413041656,-502.67258723,0.00022743,2]
[311800995,1705413041665,-2508.36442453,0.00022743,2]
[311800996,1705413041674,-150.0,0.00022744,2]
[311800997,1705413041684,-150.0,0.00022745,2]
[311800998,1705413041694,-150.0,0.00022748,2]
[311800999,1705413041703,-150.0,0.00022756,2]
[311801000,1705413041713,-150.0,0.00022763,2]
[311801001,1705413041722,-150.0,0.00022764,2]
[311801002,1705413041731,-150.0,0.00022768,2]
[311801003,1705413041741,-150.0,0.0002277,2]
[311801004,1705413041831,-150.0,0.00022771,2]
[311801005,1705413041841,-150.0,0.00022771,2]
[311801006,1705413041850,-150.0,0.00022776,2]
[311801007,1705413041860,-1500.0,0.00022776,2]
[311801008,1705413041868,-150.0,0.00022777,2]
[311801009,1705413041877,-150.0,0.00022777,2]
[311801010,1705413041887,-150.0,0.00022788,2]
[311801011,1705413041896,-441.3935686,0.00022789,2]
[311801012,1705413041905,-150.0,0.00022791,2]
[311801013,1705413041915,-220.94106301,0.00022792,2]
[311801014,1705413041924,-150.0,0.00022794,2]
[311801015,1705413041933,-191.59750759,0.00022797,2]
[311801016,1705413041942,-150.0,0.00022798,2]
[311801017,1705413041951,-150.0,0.000228,2]
[311801018,1705413041961,-11011.70114078,0.000228,2]
[311801019,1705413041970,-150.0,0.00022803,2]
[311801020,1705413041979,-150.0,0.0002281,2]
[311801021,1705413041988,-150.0,0.0002281,2]
[311801022,1705413041998,-150.0,0.0002281,2]
[311801023,1705413042007,-150.0,0.00022813,2]
[311801024,1705413042016,-150.0,0.00022813,2]
[311801025,1705413042026,-150.0,0.00022815,2]
[311801026,1705413042035,-500.0,0.00022815,2]
[311801027,1705413042044,-500.0,0.00022815,2]
[311801028,1705413042053,-200.0,0.00022815,2]
[311801029,1705413042063,-500.0,0.00022815,2]
[311801030,1705413042072,-500.0,0.00022815,2]
[311801031,1705413042081,-500.0,0.00022815,2]
[311801032,1705413042090,-500.0,0.00022815,2]
[311801033,1705413042099,-500.0,0.00022815,2]
[311801034,1705413042108,-500.0,0.00022815,2]
[311801035,1705413042118,-500.0,0.00022816,2]
[311801036,1705413042129,-500.0,0.00022816,2]
[311801037,1705413042138,-500.0,0.00022816,2]
[311801038,1705413042147,-200.0,0.00022816,2]
[311801039,1705413042156,-500.0,0.00022816,2]
[311801040,1705413042166,-500.0,0.00022816,2]
[311801041,1705413042174,-500.0,0.00022816,2]
[311801042,1705413042184,-500.0,0.00022816,2]
[311801043,1705413042193,-500.0,0.00022816,2]
[311801044,1705413042202,-500.0,0.00022816,2]
[311801045,1705413042211,-500.0,0.00022816,2]
[311801046,1705413042220,-500.0,0.00022816,2]
[311801047,1705413042229,-200.0,0.00022816,2]
[311801048,1705413042239,-800.0,0.00022816,2]
[311801049,1705413042248,-200.0,0.00022816,2]
[311801050,1705413042259,-200.0,0.00022816,2]
[311801051,1705413042268,-150.0,0.00022818,2]
[311801052,1705413042277,-150.0,0.00022822,2]
[311801053,1705413042286,-226.8,0.00022824,2]
[311801054,1705413042298,-190.67946795,0.00022825,2]
[311801055,1705413042309,-150.0,0.00022827,2]
[311801056,1705413042319,-150.0,0.00022828,2]
[311801057,1705413042328,-150.0,0.00022828,2]
[311801058,1705413042342,-150.0,0.0002283,2]
[311801059,1705413042352,-150.0,0.00022832,2]
[311801060,1705413042362,-150.0,0.00022833,2]
[311801061,1705413042372,-150.0,0.00022834,2]
[311801062,1705413042383,-150.0,0.00022835,2]
[311801063,1705413042392,-150.0,0.00022836,2]
[311801064,1705413042401,-150.0,0.00022837,2]
[311801065,1705413042410,-150.0,0.00022838,2]
[311801066,1705413042419,-150.0,0.00022839,2]
[311801067,1705413042429,-150.0,0.00022839,2]
[311801068,1705413042438,-150.0,0.00022846,2]
[311801069,1705413042447,-250.3253178,0.00022847,2]
[311801070,1705413042456,-982.45611408,0.00022847,3]
[311801071,1705413042465,-191.59750759,0.00022849,2]
[311801072,1705413042474,-150.0,0.00022851,2]
[311801073,1705413042483,-150.0,0.00022851,2]
[311801074,1705413042492,-150.0,0.00022855,2]
[311801075,1705413042500,-150.0,0.00022855,2]
[311801076,1705413042509,-150.0,0.00022855,2]
[311801077,1705413042518,-300.0,0.00022856,2]
[311801078,1705413042527,-150.0,0.00022862,2]
[311801079,1705413042537,-300.0,0.00022863,2]
[311801080,1705413042546,-328.12380494,0.00022863,2]
[311801081,1705413042555,-300.0,0.00022864,2]
[311801082,1705413042564,-150.0,0.00022866,2]
[311801083,1705413042575,-150.0,0.00022867,2]
[311801084,1705413042584,-150.0,0.00022867,2]
[311801085,1705413042593,-150.0,0.00022868,2]
[311801086,1705413042603,-150.0,0.00022869,2]
[311801087,1705413042613,-150.0,0.00022869,2]
[311801088,1705413042622,-300.0,0.00022869,2]
[311801089,1705413042633,-150.0,0.00022872,2]
[311801090,1705413042642,-150.0,0.00022874,2]
[311801091,1705413042651,-150.0,0.00022875,2]
[311801092,1705413042660,-150.0,0.00022875,2]
[311801093,1705413042670,-150.0,0.00022875,2]
[311801094,1705413042679,-150.0,0.00022877,2]
[311801095,1705413042688,-5800.0,0.00022883,2]
[311801096,1705413042697,-735.06,0.00022885,2]
[311801097,1705413042707,-150.0,0.00022886,2]
[311801098,1705413042716,-150.0,0.00022891,2]
[311801099,1705413042725,-150.0,0.00022891,2]
[311801100,1705413042734,-5800.0,0.00022892,2]
[311801101,1705413042743,-150.0,0.00022892,2]
[311801103,1705413042752,-150.0,0.00022892,2]
[311801104,1705413042761,-150.0,0.00022893,2]
[311801105,1705413042770,-184.77937279,0.00022894,2]
[311801106,1705413042779,-973.80785546,0.00022894,2]
[311801107,1705413042788,-973.80785535,0.00022895,2]
[311801108,1705413042797,-150.0,0.00022895,2]
[311801110,1705413042806,-973.80785535,0.00022895,2]
[311801111,1705413042815,-973.80785535,0.00022896,2]
[311801112,1705413042825,-150.0,0.00022896,2]
[311801113,1705413042834,-973.80785535,0.00022896,2]
[311801114,1705413042843,-973.80785535,0.00022897,2]
[311801115,1705413042852,-973.80785535,0.00022897,2]
[311801116,1705413042861,-973.80785535,0.00022898,2]
[311801117,1705413042871,-150.0,0.00022898,2]
[311801118,1705413042882,-973.80785535,0.00022898,2]
[311801119,1705413042891,-973.80785535,0.00022899,2]
[311801120,1705413042900,-973.80785535,0.00022899,2]
[311801121,1705413042910,-250.0,0.000229,2]
[311801122,1705413042919,-694.0,0.000229,2]
[311801123,1705413042928,-150.0,0.000229,2]
[311801124,1705413042937,-187.08182712,0.000229,2]
[311801125,1705413042947,-5800.0,0.000229,2]
[311801126,1705413042956,-973.80785535,0.000229,2]
[311801127,1705413042966,-220.94106301,0.000229,2]
[311801128,1705413042975,-150.0,0.000229,2]
[311801129,1705413042984,-191.59750759,0.000229,2]
[311801130,1705413042993,-330.79897173,0.000229,2]
[311801131,1705413043003,-150.0,0.00022902,2]
[311801132,1705413043013,-150.0,0.00022903,2]
[311801133,1705413043022,-150.0,0.00022903,2]
[311801134,1705413043033,-150.0,0.00022906,2]
[311801135,1705413043042,-150.0,0.00022906,2]
[311801136,1705413043053,-150.0,0.0002291,2]
[311801137,1705413043062,-150.0,0.00022912,2]
[311801138,1705413043071,-300.0,0.00022913,2]
[311801139,1705413043081,-150.0,0.00022913,2]
[311801140,1705413043090,-150.0,0.00022913,2]
[311801141,1705413043099,-150.0,0.00022916,2]
[311801142,1705413043109,-150.0,0.00022921,2]
[311801143,1705413043118,-1500.0,0.00022922,2]
[311801144,1705413043128,-150.0,0.0002293,2]
[311801145,1705413043136,-226.8,0.00022935,2]
[311801146,1705413043146,-150.0,0.00022937,2]
[311801147,1705413043155,-150.0,0.00022946,2]
[311801148,1705413043164,-150.0,0.00022948,2]
[311801149,1705413043173,-150.0,0.00022951,2]
[311801150,1705413043182,-150.0,0.00022952,2]
[311801151,1705413043191,-150.0,0.00022953,2]
[311801152,1705413043201,-1500.0,0.00022954,2]
[311801153,1705413043209,-150.0,0.00022955,2]
[311801154,1705413043219,-150.0,0.00022955,2]
[311801155,1705413043228,-300.0,0.00022957,2]
[311801156,1705413043237,-150.0,0.00022964,2]
[311801157,1705413043247,-150.0,0.00022967,2]
[311801158,1705413043256,-150.0,0.00022967,2]
[311801159,1705413043265,-1000.0,0.0002297,2]
[311801160,1705413043274,-1761.49032588,0.0002297,2]
[311801161,1705413043283,-500.0,0.0002297,2]
[311801162,1705413043292,-500.0,0.0002297,2]
[311801163,1705413043301,-500.0,0.0002297,2]
[311801164,1705413043310,-500.0,0.0002297,2]
[311801165,1705413043319,-500.0,0.0002297,2]
[311801166,1705413043328,-508.74170327,0.0002297,2]
[311801167,1705413043344,-157.5,0.00022971,2]
[311801168,1705413043355,-150.0,0.00022973,2]
[311801169,1705413043365,-150.0,0.00022973,2]
[311801170,1705413043374,-150.0,0.00022977,2]
[311801173,1705413043384,-150.0,0.00022978,2]
[311801174,1705413043394,-150.0,0.00022979,2]
[311801176,1705413043405,-150.0,0.00022982,2]
[311801178,1705413043414,-362.842,0.00022989,2]
[311801180,1705413043425,-150.0,0.00022989,2]
[311801181,1705413043435,-215.0,0.00022989,2]
[311801182,1705413043445,-461.948,0.00022989,2]
[311801183,1705413043454,-2272.0,0.00022989,2]
[311801184,1705413043463,-566.112,0.00022989,2]
[311801185,1705413043473,-150.0,0.00022989,2]
[311801186,1705413043482,-152.0,0.00022989,2]
[311801187,1705413043491,-16169.204,0.00022989,2]
[311801188,1705413043502,-5575.0,0.00022989,2]
[311801189,1705413043511,-153.0,0.00022989,2]
[311801190,1705413043520,-153.28,0.00022989,2]
[311801191,1705413043530,-150.0,0.00022989,2]
[311801192,1705413043542,-239.567,0.00022989,2]
[311801193,1705413043553,-200.0,0.00022989,2]
[311801194,1705413043564,-223.973,0.00022989,2]
[311801195,1705413043574,-153.126,0.00022989,2]
[311801196,1705413043584,-150.0,0.00022989,2]
[311801197,1705413043594,-2774.19153734,0.00022992,2]
[311801198,1705413043605,-1362.90944747,0.00022992,2]
[311801199,1705413043616,-939.56400894,0.00022992,2]
[311801200,1705413043627,-150.0,0.00022992,2]
[311801201,1705413043638,-3193.48247001,0.00022993,2]
[311801202,1705413043647,-150.0,0.00022993,2]
[311801203,1705413043658,-1888334.70769959,0.00022994,2]
[311801204,1705413043670,-520009.59025245,0.00022994,2]
[311801205,1705413043679,-152.84068148,0.00022994,2]
[311801206,1705413043688,-150.0,0.00022994,2]
[311801207,1705413043698,-150.0,0.00022996,2]
[311801208,1705413043707,-71891.3894648,0.00022998,2]
[311801209,1705413043717,-300.02,0.00022999,2]
[311801210,1705413043726,-1639.57215117,0.00022999,2]
[311801211,1705413043735,-150.0,0.00022999,2]
[311801212,1705413043744,-5403.793015,0.00022999,2]
[311801213,1705413043753,-3494.237356,0.00022999,2]
[311801214,1705413043762,-300.0,0.00022999,2]
[311801215,1705413043771,-300.0,0.00022999,2]
[311801216,1705413043780,-300.0,0.00022999,2]
[311801217,1705413043790,-300.0,0.00022999,2]
[311801218,1705413043799,-300.0,0.00022999,2]
[311801219,1705413043808,-300.0,0.00022999,2]
[311801220,1705413043817,-300.0,0.00022999,2]
[311801221,1705413043826,-300.0,0.00022999,2]
[311801223,1705413043835,-300.0,0.00022999,2]
[311801224,1705413043845,-300.0,0.00022999,2]
[311801225,1705413043854,-300.0,0.00022999,2]
[311801226,1705413043863,-300.0,0.00022999,2]
[311801227,1705413043872,-300.0,0.00022999,2]
[311801228,1705413043882,-300.0,0.00022999,2]
[311801229,1705413043891,-300.0,0.00022999,2]
[311801230,1705413043901,-300.0,0.00022999,2]
[311801231,1705413043910,-300.0,0.00022999,2]
[311801232,1705413043919,-300.0,0.00022999,2]
[311801233,1705413043928,-300.0,0.00022999,2]
[311801234,1705413043937,-300.0,0.00022999,2]
[311801235,1705413043946,-300.0,0.00022999,2]
[311801236,1705413043956,-300.0,0.00022999,2]
[311801237,1705413043965,-300.0,0.00022999,2]
[311801238,1705413043974,-300.0,0.00022999,2]
[311801239,1705413043983,-300.0,0.00022999,2]
[311801240,1705413043992,-300.0,0.00022999,2]
[311801241,1705413044002,-300.0,0.00022999,2]
[311801242,1705413044011,-300.0,0.00022999,2]
[311801243,1705413044021,-300.0,0.00022999,2]
[311801244,1705413044030,-300.0,0.00022999,2]
[311801245,1705413044039,-300.0,0.00022999,2]
[311801246,1705413044048,-300.0,0.00022999,2]
[311801247,1705413044057,-300.0,0.00022999,2]
[311801248,1705413044067,-300.0,0.00022999,2]
[311801249,1705413044077,-284.56686748,0.00023,2]
[311801250,1705413044086,-288362.93413268,0.00023,2]
[311801251,1705413044096,-3518738.89176116,0.00023,2]
[311801252,1705413044105,-668690.66789249,0.00023,2]
[311801253,1705413044116,-9348800.87347939,0.00023,2]
[311801254,1705413044127,-1188765.68004582,0.00023,2]
[311801255,1705413044137,-510.18303041,0.00023,2]
[311801256,1705413044146,-2256741.15351423,0.00023,2]
[311801257,1705413044155,-484881.23830302,0.00023,2]
[311801258,1705413044165,-205322.1703872,0.00023,2]
[311801259,1705413044174,-1680319.71342906,0.00023,2]
[311801260,1705413044209,-1899.8979998,0.00023,2]
[311801261,1705413044236,-533.96922861,0.00023,2]
[311801262,1705413044247,-20291.2361948,0.00023,2]
[311801263,1705413044261,-4533.13847482,0.00023,2]
[311801264,1705413044281,-1768.45637484,0.00023,2]
[311801265,1705413044296,-524.32057752,0.00023,2]
[311801266,1705413044310,-1424.0,0.00023,2]
[311801267,1705413044322,-1978.54796985,0.00023,2]
[311801268,1705413044334,-1198.26384244,0.00023,2]
[311801269,1705413045150,-5243.13079537,0.00023,2]
[311801281,1705413046071,-365.29499343,0.00023,2]
[311801284,1705413046087,-599.27979208,0.00023,2]
[311801285,1705413046099,-8370.78,0.00023,2]
[311801286,1705413046137,-26611.31933874,0.00023,2]
[311801287,1705413046204,-4294.9,0.00023,2]
[311801288,1705413046257,-1674.37926247,0.00023,2]
[311801289,1705413046317,-150.0,0.00022883,2]
[311801290,1705413046326,-168.28555796,0.00023,2]
[311801291,1705413046340,-648.91636192,0.00023,2]
[311801292,1705413046352,-10798.5278766,0.00023,2]
[311801311,1705413083352,4079.5137,0.00021954,2]
[311801312,1705413108513,187.74,0.00020067,2]
[311801313,1705413246359,409.22,0.00021912,2]
[311801314,1705413251182,3036.78,0.0002,2]
[311801315,1705413251205,3497.42953313,0.0002,2]
[311801316,1705413265747,219.99906844,0.00020067,2]
[311801317,1705413295178,409.92,0.00021907,2]
[311801318,1705413404664,2550.72544057,0.00021847,2]
[311801319,1705413433141,20000.0,0.00021,2]